Cogmind - Beta 16 @@@ ROGUE MODE // 2025.11.09 @ 11:15:06 Player: welikiq Result: Destroyed by D-53 Grenadier with Mini Grenade Launcher Performance ------------- Evolutions (0) 0 Regions Visited (2) 400 Robots Destroyed (32) 160 Value Destroyed (584) 584 Prototype IDs (0) 0 Alien Tech Used (0) 0 Bonus (0) 0 TOTAL SCORE: 1144 Bonus ------- None Cogmind --------- Core Integrity 0/250 Matter 276/300 Energy 100/100 System Corruption 7% Temperature Cool (0) Movement Treading (160) Location -10/Mines Parts ------- > --- POWER (1) -------- (None) > --- PROPULSION (2) --- Light Treads > --- UTILITY (2) ------ Small Storage Unit > --- WEAPON (2) ------- Light Assault Rifle > --- INVENTORY (8) ---- Ion Engine Light Treads Improved Heat Sink Medium Storage Unit Improved Terrain Scanner Mining Claw Peak State ------------ > --- POWER ------------ Ion Engine > --- PROPULSION ------- Light Treads Light Treads > --- UTILITY ---------- Small Storage Unit Light Armor Plating > --- WEAPON ----------- EM Pulse Gun Assault Rifle > --- INVENTORY -------- Ion Engine Light Treads Improved Heat Sink Medium Storage Unit Improved Terrain Scanner EM Pulse Gun Light Assault Rifle Mining Claw [Rating: 8] Favorites ----------- Power Ion Engine Engine Ion Engine Propulsion Light Treads Treads Light Treads Utility Small Storage Unit Storage Small Storage Unit Protection Light Armor Plating Weapon Medium Laser Energy Gun Medium Laser Ballistic Gun Assault Rifle Build | -11 -10 -10 ------- Run | Yrd Mat Min Slots Evolved . | . . . Power . | . . . Propulsion . | . . . Utility . | . . . Weapon . | . . . Parts Attached 16 | 7 7 2 Power 4 | 2 2 . Engine 4 | 2 2 . Core . | . . . Reactor . | . . . Propulsion 4 | 2 2 . Treads 4 | 2 2 . Leg . | . . . Wheel . | . . . Hover . | . . . Flight . | . . . Utility 2 | 1 1 . Device . | . . . Storage 1 | 1 . . Processor . | . . . Hackware . | . . . Protection 1 | . 1 . Artifact . | . . . Weapon 6 | 2 2 2 Energy Gun 4 | 2 1 1 Energy Cannon . | . . . Ballistic Gun 2 | . 1 1 Ballistic Cannon . | . . . Launcher . | . . . Special Weapon . | . . . Impact Weapon . | . . . Slashing Weapon . | . . . Piercing Weapon . | . . . Special Melee Weapon . | . . . Unidentified Prototypes . | . . . Parts Lost 7 | . 1 6 Power 1 | . . 1 Propulsion 2 | . 1 1 Utility 1 | . . 1 Weapon 3 | . . 3 Highest Loss Streak 6 | . 1 6 To Critical Strikes . | . . . Average Backups 4 | 1 4 7 Power . | . . 1 Propulsion . | . . 1 Utility 1 | . 1 2 Weapon 1 | . 1 2 Tool/Special . | . . . Unused Backups 6 | . 1 5 Power 1 | . . 1 Propulsion . | . . . Utility 4 | . 1 3 Weapon 1 | . . 1 Tool/Special . | . . . Average Slot Usage (%) 89 | . 84 99 Engine 13 | . 14 13 Treads 27 | . 27 28 Storage 14 | . 14 14 Protection 4 | . . 14 Energy Gun 17 | . 19 13 Ballistic Gun 10 | . 8 14 Peak Build Rating 8 | 6 7 8 Average Rating 6 | 5 6 7 On Entrance 4 | . 6 7 Avg Prop Armor Cover (%) . | . . . Naked Turns . | . . . Heaviest Build 17 | 14 17 17 Greatest Support 40 | 40 40 40 Greatest Overweight (x) . | . . . Average Overweight (x) . | . . . Largest Inventory Capacity 8 | 8 8 8 Average Capacity 7 | 7 8 8 Most Carried 8 | 2 8 8 Average Carried 4 | 1 4 7 Final Capacity 8 | 8 8 8 Final Carried 7 | 2 7 6 Class Distribution -------------------- 100% | Mutant Dominant Class ---------------- Mutant | -10/Materials Mutant | -10/Mines Resources | -11 -10 -10 ----------- Run | Yrd Mat Min Matter Collected 546 | 270 206 70 Remotely . | . . . Salvage Created 1119 | 146 849 124 Parts 65 | 3 57 5 Haulers Intercepted 2 | . 2 . Recyclers Shooed 3 | . 3 . Parts Field Recycled . | . . . Retrieved Matter . | . . . Parts Self-Destructed . | . . . Prevented . | . . . Parts Restored . | . . . Kills | -11 -10 -10 ------- Run | Yrd Mat Min Combat Hostiles Destroyed 17 | . 13 4 Guns 17 | . 13 4 Classes Destroyed 10 | 2 6 2 Builder 2 | . 2 . Tunneler 3 | 2 1 . Hauler 2 | . 2 . Recycler 4 | 1 3 . Operator 2 | . 2 . Watcher 3 | . 3 . Swarmer 6 | . 6 . Grunt 9 | . 7 2 Demolisher 1 | . . 1 Assembled 1 | . . 1 Best Kill Streak 4 | 1 4 2 Combat Bots Only 3 | . 3 2 Max Kills in Single Turn 2 | 1 2 1 Gunslinging . | . . . Exploded . | . . . Melee . | . . . Uniques/NPCs Destroyed . | . . . Combat | -11 -10 -10 -------- Run | Yrd Mat Min Hostile Shots Fired 98 | . 66 32 Missed 22 | . 14 8 Hits 76 | . 52 24 Melee 3 | . . 3 Projectile 73 | . 52 21 AOE 13 | . . 13 Damage Taken 1352 | . 663 689 Core 281 | . 81 200 Absorbed by Shields . | . . . Core Remaining (%) 100 | 100 . . Volleys Fired 105 | 14 74 17 Largest 2 | 2 2 2 Hottest 100 | 100 100 60 Shots Fired 201 | 28 148 25 Gun 201 | 28 148 25 Cannon . | . . . Launcher . | . . . Special . | . . . Kinetic 49 | . 31 18 Thermal 145 | 28 117 . Explosive . | . . . Electromagnetic 7 | . . 7 Robot Hit Streak 11 | 5 11 9 Robot Miss Streak 8 | 2 8 2 Penetration Max . | . . . Secondary Targets . | . . . Shots Hit Robots 118 | 18 82 18 Core Hits 55 | 4 42 9 Critical Kills . | . . . Critical Parts Destroyed 1 | . . 1 Critical Strikes 11 | 1 8 2 Burn 9 | 1 8 . Destroy 1 | . . 1 Corrupt 1 | . . 1 Melee Attacks . | . . . Impact . | . . . Slashing . | . . . Piercing . | . . . Sneak Attacks . | . . . Combat Hostiles . | . . . Follow-up Attacks . | . . . Damage Inflicted 1468 | 225 1043 200 Guns 1463 | 225 1038 200 Cannons . | . . . Explosions . | . . . Melee . | . . . Ramming 5 | . 5 . Kinetic 295 | . 150 145 Thermal 1113 | 225 888 . Explosive . | . . . Electromagnetic 55 | . . 55 Impact . | . . . Slashing . | . . . Piercing . | . . . Highest Corruption 7 | . 4 7 Average Corruption 3 | . 3 4 Corruption Purged . | . . . Corruption Blocked . | . . . Effects 23 | . 11 12 Message Errors 3 | . 1 2 Matter Fused 8 | . 6 2 Heat Flow Errors 2 | . . 2 Parts Fused 1 | . . 1 Data Loss (minor) 6 | . 3 3 Data Loss (major) 1 | . 1 . Alerts 1 | . . 1 Weapon Failures 1 | . . 1 Overload Shots . | . . . Overflow Damage . | . . . Projectiles . | . . . Explosions . | . . . Melee . | . . . Knockbacks . | . . . Impact . | . . . Kinetic . | . . . Secondary . | . . . Self-Inflicted Damage . | . . . Shots . | . . . Rammed 4 | . 4 . Targets Rammed 4 | . 4 . Kicked . | . . . Crushed . | . . . Highest Temperature 276 | 156 276 240 Average Temperature 65 | 66 64 69 Received Heat Transfer 226 | . 168 58 Effects 2 | . . 2 Interference 2 | . . 2 Siege Activations . | . . . Martial Activations . | . . . Shielding Activations . | . . . Robots Disrupted . | . . . Combat Hostiles . | . . . Robots Corrupted . | . . . Combat Hostiles . | . . . Parts Fried . | . . . Impact Corruptions . | . . . Robots Melted . | . . . Combat Hostiles . | . . . Parts Melted 6 | 1 5 . Heat Transferred 3959 | 740 3219 . Parts Sabotaged . | . . . Parts Stolen . | . . . Parts Stripped . | . . . Power Chain Reactions . | . . . Alert | -11 -10 -10 ------- Run | Yrd Mat Min Maximum Alert Level . | . . . Low Security (%) 100 | 100 100 100 Level 1 . | . . . Level 2 . | . . . Level 3 . | . . . Level 4 . | . . . Level 5 . | . . . High Security . | . . . Max Security . | . . . Peak Influence 145 | 5 145 52 Initial 19 | . . 19 Average 40 | . 58 6 Influence Increases 566 | 15 469 82 Destroy 0b10 Robot/C 320 | . 260 60 Destroy 0b10 Robot/NC 80 | 15 65 . Destroy Leader 80 | . 60 20 Allied During Kill 2 | . . 2 Successful Hack 38 | . 38 . Destroy Structure 1 | . 1 . Lose Combat Pursuer 45 | . 45 . Influence Decreases 566 | 15 418 133 Entered New Map 32 | . . 32 Time Decay 474 | 15 408 51 Lost Part 40 | . 10 30 Lost Ally 20 | . . 20 Squads Dispatched 2 | . 2 . Investigation . | . . . Extermination . | . . . Reinforcement 2 | . 2 . Assault . | . . . Garrison . | . . . Intercept . | . . . Searches Triggered . | . . . Construction Impeded . | . . . Haulers Reinforced . | . . . Active Scanning Responses . | . . . Cargo Convoy Interrupts . | . . . Stealth | -11 -10 -10 --------- Run | Yrd Mat Min Distress Signals 2 | . 2 . Communications Jammed . | . . . Distress Signals . | . . . Times Spotted 47 | . 27 20 Peak Tracking Total 11 | . 6 11 Tactical Retreats 2 | . 1 1 Traps | -11 -10 -10 ------- Run | Yrd Mat Min Traps Triggered 5 | . 5 . Indirectly . | . . . Trap Hack Attempts . | . . . Triggered . | . . . Disarmed . | . . . Reprogrammed . | . . . Reused . | . . . Traps Extracted . | . . . Installed . | . . . Triggered . | . . . Machines | -11 -10 -10 ---------- Run | Yrd Mat Min Machines Disabled . | . . . Max in Single Turn . | . . . Machines Repaired . | . . . Machines Dismantled . | . . . Machines Sabotaged . | . . . Overloaded Fab Kills . | . . . Hacking | -11 -10 -10 --------- Run | Yrd Mat Min Machines Accessed 3 | . 3 . Terminals 3 | . 3 . Fabricators . | . . . Repair Stations . | . . . Recycling Units . | . . . Scanalyzers . | . . . Garrison Access . | . . . Total Hacks 8 | . 8 . Successful 5 | . 5 . Failed 3 | . 3 . Catastrophic . | . . . Database Lockouts . | . . . Manual 1 | . 1 . Terminals 8 | . 8 . Fabricators . | . . . Repair Stations . | . . . Recycling Units . | . . . Scanalyzers . | . . . Garrison Access . | . . . Terminal Hacks 5 | . 5 . Branch Access Points 1 | . 1 . Scanalyzer Index 1 | . 1 . Transport Status 1 | . 1 . Registered Prototypes 1 | . 1 . Zone Layout 1 | . 1 . Fabricator Hacks . | . . . Repair Station Hacks . | . . . Recycling Unit Hacks . | . . . Scanalyzer . | . . . Garrison Access Hacks . | . . . Unauthorized Hacks . | . . . Terminals . | . . . Fabricators . | . . . Repair Stations . | . . . Recycling Units . | . . . Scanalyzers . | . . . Garrison Access . | . . . Data Cores Recovered . | . . . Used . | . . . Hacking Detections 3 | . 3 . Full Trace Events . | . . . Feedback Events . | . . . Feedback Blocked . | . . . Robot Schematics Acquired . | . . . Robots Built . | . . . Authchips . | . . . Time . | . . . Total Robot Build Rating . | . . . Part Schematics Acquired . | . . . Parts Built . | . . . Authchips . | . . . Time . | . . . Total Part Build Rating . | . . . Part Studies Acquired . | . . . Parts Repaired . | . . . Time . | . . . Parts Recycled . | . . . Recycled Matter . | . . . Retrieved Matter . | . . . Retrieved Components . | . . . Parts Scanalyzed . | . . . Part Schematics Acquired . | . . . Parts Damaged . | . . . Bothacking | -11 -10 -10 ------------ Run | Yrd Mat Min Used RIF Installer . | . . . Robots Hacked . | . . . Non-combat . | . . . Combat . | . . . Robot Hacks Applied . | . . . Relay Couplers Released . | . . . Fabnet Peak Effective % . | . . . Robots Rewired . | . . . Allies Hacked . | . . . Hacks Repelled . | . . . Allies | -11 -10 -10 -------- Run | Yrd Mat Min Total Allies 2 | . . 2 Largest Group 2 | . . 2 Highest-Rated Group 42 | . . 42 Highest-Rated Ally 31 | . . 31 Total Orders . | . . . Ally Attacks 6 | . . 6 Total Damage 107 | . . 107 Kills . | . . . Allies Corrupted . | . . . Allies Melted . | . . . Intel | -11 -10 -10 ------- Run | Yrd Mat Min Active Infowar (turns) . | . . . Robot Analysis Total . | . . . Derelict Logs Recovered 1 | . . 1 Drone Launches . | . . . Drone Recoveries . | . . . Exploration | -11 -10 -10 ------------- Run | Yrd Mat Min Turns Passed 2015 | 164 1331 520 Spaces Moved 977 | 71 626 280 Core 2 | 2 . . Treads 975 | 69 626 280 Legs . | . . . Wheels . | . . . Hover . | . . . Flight . | . . . Fastest Speed 50 | 50 160 160 Average Speed 159 | 156 160 160 Slowest Speed 160 | 160 160 160 Overloaded Moves . | . . . Propulsion Burnouts . | . . . Robots Hopped . | . . . Potential Cave-ins . | . . . Cave-ins Triggered . | . . . Exploration Rate (%) 48 | 6 84 54 Regions Visited 2 Branch Regions 1 Pre-discovered Areas . | . . . Known Exits Taken 1 | . 1 . Unknown Exits Taken 1 | 1 . . Scrap Searched 1 | . . 1 Spaces Dug . | . . . Terrain Destroyed . | . . . Melee . | . . . Projectile . | . . . AOE . | . . . Terrain Rammed . | . . . Walls Destroyed . | . . . Machines Disabled . | . . . Actions | -11 -10 -10 --------- Run | Yrd Mat Min Total 1224 | 92 805 327 Wait 111 | . 84 27 Move 975 | 70 625 280 Hop . | . . . Pick Up 9 | 1 7 1 Fast Attach 7 | 6 1 . Attach 3 | . 1 2 Detach . | . . . Swap 6 | 1 5 . Drop 4 | . 4 . Fire 105 | 14 74 17 Melee . | . . . Ram . | . . . Kick . | . . . Crush 4 | . 4 . Escape Stasis . | . . . Rewire . | . . . Trap . | . . . Miscellaneous . | . . . Route ------- -11/Scrapyard -10/Materials (discovered 4 exits: [*Mat x2] / *Min x2) -10/Mines (discovered 2 exits: [*Mat x2]) History --------- Turn | Location | Event 45 | -11/Scrapyard | Discovered new exit (range 14) 165 | -11/Scrapyard | Entered Materials 318 | -10/Materials | Build established: Mutant 651 | -10/Materials | Discovered new exit (range 15) 1054 | -10/Materials | Identified exit to Mines 1183 | -10/Materials | Discovered new exit (range 10) 1416 | -10/Materials | Discovered new exit (range 9) 1496 | -10/Materials | Entered Mines 1519 | -10/Mines | Discovered new exit (range 12) 1616 | -10/Mines | Discovered new exit (range 9) 1618 | -10/Mines | Learned location of 1 exit from Materials 1943 | -10/Mines | Assembled infested the area 1997 | -10/Mines | Core integrity fell below 50% 2000 | -10/Mines | Core integrity fell below 20% 2016 | -10/Mines | Destroyed by D-53 Grenadier with Mini Grenade Launcher Last Messages --------------- 02002_ The unstable cave ceiling collapses. 02002_ D-53 Grenadier destroyed. 02003_ Ion Engine destroyed. 02003_ as-48139 destroyed. 02005_ EM Pulse Gun destroyed. 02005_ as-73469 destroyed. 02005_ K-01 Serf collects debris. 02006_ The unstable cave ceiling collapses. 02007_ as-74765 destroyed. 02008_ R-06 Scavenger collects Mak. Leg. 02009_ Assault Rifle destroyed. 02011_ YWQIQQV,2SDRDTTMLKWNEHLUTD52N&P& 02011_ The unstable cave ceiling collapses. 02011_ K-01 Serf collects debris. 02011_ Lgt. Armor Plating destroyed. 02013_ The unstable cave ceiling collapses. 02014_ Lgt. Treads destroyed. 02015_ The unstable cave ceiling collapses. 02015_ K-01 Serf collects debris. 02016_ The unstable cave ceiling collapses. Map ----- +----------------------------------------------------+ | ????????????????????????????????????? | | ????????????????????????????????????? | | ????????????????????????????????????? | | ????????????????????????????????????? | | ????????????????????????????????????? | | ????????????????????????????????????? | | ????????????????????????????????????? | | ????????????????????????????????????? | | ????????????????????????????????????? | | ????????????????????????????????????? | | ??????????????????????? ??????????? | | ??????????????????????? ??????????? | | ??????????????????????? ??????????? | | ??????????????????????? ??????????? | | ??????????????????????? ??????????? | | ???????????????????????#a #?????????? | | ???????????????????????# #?##??????? | | ???????????????????????# ## ??????? | | ?????????????????????### ???????? | | ????????????????????## ???????? | | ???????????####???### #???????? | | ???????????# ??? # ##??????? | | ???????????# ??? ## ##?????? | | ???????????# """ # #?????? | | ???????????# """ # # #?????? | | ???????????# # @ #?????? | | ?####??????# """ # #?????? | | ## ####???# """ # #?????? | | # #???# """ # #?????? | | ##??# %!! ## ###?????? | | ##?# != # dt ##??????? | | ### #######%##### #???????? | | ??### #####[####r k #???????? | | ????## *% ##???????? | | ?????#### ######!## ##????????? | | ????????# #???? #?## #?????????? | | ????????# ##???##???# #????????? | | ???????# ##?????????# #????????? | | ####??# #??????????## #????????? | | ???????????# ##????????? | | ######## ???????????# #?????????? | | ???????### ??????????? ?????????? | | ?????????####???????????# ?????????? | | ?????????????????????????###????????? | | ????????????????????????????????????? | | ????????????????????????????????????? | | ????????????????????????????????????? | | ????????????????????????????????????? | | ????????????????????????????????????? | | | +----------------------------------------------------+ Best States ------------- Heat Dissipation 25 Energy Generation 10 Energy Capacity 250 Matter Stores 300 Matter Capacity 300 Sight Range 16 Terrain Scan Density 10 Armor Coverage 150 Evasion (%) 40 Recoil Reduction 2 Item Schematics ----------------- None Robot Schematics ------------------ None Fabricated ------------ Nothing Repaired ---------- Nothing Studied --------- None Alien Tech Used ----------------- None Achievements -------------- None Challenges ------------ None Game ------ Seed PitchforkMissileSuite Manual? 0 Play Time 00:16:16 Cumulative 37.1 hours Start 2025.11.09 @ 11:00:32 End 2025.11.09 @ 11:15:06 Sessions 3 Manual Loads 0 Difficulty Rogue Special Mode None Game No. 55 Rogue 55 Adventurer 0 Explorer 0 Win Type - Total 0 Types 0/0/0/0/0/0/0/0/0/0 Lore% 8 Gallery% 19 Achievement% 16 Wizard Run 0 Options --------- Layout 0 ASCII 0 Keyboard 0 Movement Mouse Keybinds 0 Fullscreen 2 Font 24/Smallcaps Map View 76x50 Zoom Use 3% Tactical HUD 1 Map Filters NONE Filters NONE Steam 1 RUN: f7da1b2b-0c1b-4ee0-8917-083b23020c1a